[Event "Titled Tuesday Blitz July 25 Late 2023"]
[White "Boder, Jan"]
[Black "Fisher_TheGalactic"]
[WhiteFideId "16243226"]
[WhiteElo "2294"]
[BlackElo "2692"]
[Result "1-0"]
[Round "2"]
[TimeControl "180+2"]
[Date "2023.07.25"]
[WhiteClock "0:00:24"]
[BlackClock "0:00:00"]
[Board "82"]

1. c4 {[%clk 0:02:59]}  e6 {[%clk 0:02:59]} 2. g3 {[%clk 0:02:58]}  d5 {[%clk 0:02:59]} 3. Bg2 {[%clk 0:02:59]}  Nf6 {[%clk 0:02:58]} 4. Nf3 {[%clk 0:03:00]}  Be7 {[%clk 0:02:58]} 5. O-O {[%clk 0:03:00]}  O-O {[%clk 0:02:59]} 6. d4 {[%clk 0:03:01]}  c6 {[%clk 0:02:59]} 7. Nc3 {[%clk 0:03:01]}  Nbd7 {[%clk 0:02:59]} 8. Qd3 {[%clk 0:03:01]}  b6 {[%clk 0:02:57]} 9. b3 {[%clk 0:02:57]}  Ba6 {[%clk 0:02:55]} 10. e4 {[%clk 0:02:57]}  dxc4 {[%clk 0:02:48]} 11. bxc4 {[%clk 0:02:55]}  Nc5 {[%clk 0:02:47]} 12. Qc2 {[%clk 0:02:49]}  Bxc4 {[%clk 0:02:43]} 13. dxc5 {[%clk 0:02:44]}  Bxf1 {[%clk 0:02:42]} 14. Bxf1 {[%clk 0:02:43]}  Bxc5 {[%clk 0:02:43]} 15. e5 {[%clk 0:02:29]}  Nd5 {[%clk 0:02:23]} 16. Ne4 {[%clk 0:02:26]}  Be7 {[%clk 0:02:07]} 17. Qxc6 {[%clk 0:01:58]}  Nb4 {[%clk 0:02:01]} 18. Qa4 {[%clk 0:01:46]}  Qd5 {[%clk 0:01:47]} 19. Ned2 {[%clk 0:01:25]}  Rfc8 {[%clk 0:01:37]} 20. a3 {[%clk 0:01:23]}  Nc2 {[%clk 0:01:33]} 21. Rb1 {[%clk 0:01:23]}  Bc5 {[%clk 0:01:18]} 22. Bc4 {[%clk 0:01:12]}  Qc6 {[%clk 0:01:06]} 23. Qxc2 {[%clk 0:01:08]}  b5 {[%clk 0:01:06]} 24. Bd3 {[%clk 0:00:40]}  Bxf2+ {[%clk 0:01:04]} 25. Kxf2 {[%clk 0:00:41]}  Qb6+ {[%clk 0:01:04]} 26. Ke2 {[%clk 0:00:34]}  Rxc2 {[%clk 0:01:02]} 27. Bxc2 {[%clk 0:00:35]}  Rc8 {[%clk 0:00:58]} 28. Bd3 {[%clk 0:00:35]}  a6 {[%clk 0:00:58]} 29. Bb2 {[%clk 0:00:33]}  Rd8 {[%clk 0:00:55]} 30. Rc1 {[%clk 0:00:31]}  Qb7 {[%clk 0:00:51]} 31. Bd4 {[%clk 0:00:29]}  g6 {[%clk 0:00:44]} 32. Bc5 {[%clk 0:00:28]}  Qd5 {[%clk 0:00:29]} 33. Bd6 {[%clk 0:00:28]}  f6 {[%clk 0:00:24]} 34. Ne4 {[%clk 0:00:25]}  Qa2+ {[%clk 0:00:08]} 35. Rc2 {[%clk 0:00:25]}  Qa1 {[%clk 0:00:06]} 36. Nxf6+ {[%clk 0:00:25]}  Kh8 {[%clk 0:00:07]} 37. Rc7 {[%clk 0:00:24]}  Qb2+ {[%clk 0:00:00]} 38. Nd2 {[%clk 0:00:24]} 1-0


[Site "https://www.chess.com"]

[Event "Titled Tuesday Blitz July 25 Late 2023"]
[White "Jaracz, Pawel"]
[Black "Broca Jimenez, Fernando"]
[WhiteFideId "1102222"]
[BlackFideId "5104742"]
[WhiteElo "2692"]
[BlackElo "2286"]
[Result "1-0"]
[Round "2"]
[TimeControl "180+2"]
[Date "2023.07.25"]
[WhiteClock "0:01:04"]
[BlackClock "0:00:07"]
[Board "83"]

1. d4 {[%clk 0:02:55]}  Nf6 {[%clk 0:02:58]} 2. c4 {[%clk 0:02:54]}  e6 {[%clk 0:02:57]} 3. Nc3 {[%clk 0:02:54]}  Bb4 {[%clk 0:02:57]} 4. Bg5 {[%clk 0:02:53]}  c5 {[%clk 0:02:54]} 5. d5 {[%clk 0:02:53]}  exd5 {[%clk 0:02:44]} 6. cxd5 {[%clk 0:02:52]}  Ne4 {[%clk 0:02:16]} 7. Bxd8 {[%clk 0:02:44]}  Nxc3 {[%clk 0:02:16]} 8. Qc2 {[%clk 0:02:12]}  Ne4+ {[%clk 0:02:04]} 9. Kd1 {[%clk 0:02:11]}  Nxf2+ {[%clk 0:02:05]} 10. Kc1 {[%clk 0:02:11]}  Nxh1 {[%clk 0:02:06]} 11. a3 {[%clk 0:02:05]}  Be1 {[%clk 0:01:48]} 12. Bc7 {[%clk 0:01:52]}  O-O {[%clk 0:01:43]} 13. Bd6 {[%clk 0:01:43]}  Re8 {[%clk 0:01:40]} 14. Nf3 {[%clk 0:01:39]}  Bf2 {[%clk 0:01:31]} 15. e4 {[%clk 0:01:33]}  Be3+ {[%clk 0:01:16]} 16. Kb1 {[%clk 0:01:32]}  Nf2 {[%clk 0:01:12]} 17. e5 {[%clk 0:01:30]}  Ng4 {[%clk 0:01:06]} 18. Bxc5 {[%clk 0:01:26]}  Na6 {[%clk 0:00:58]} 19. Bd6 {[%clk 0:01:23]}  Bb6 {[%clk 0:00:34]} 20. Ng5 {[%clk 0:01:20]}  g6 {[%clk 0:00:30]} 21. Ne4 {[%clk 0:01:06]}  Nxe5 {[%clk 0:00:16]} 22. Nf6+ {[%clk 0:01:05]}  Kh8 {[%clk 0:00:07]} 23. Nxe8 {[%clk 0:01:04]} 1-0


[Site "https://www.chess.com"]

[Event "Titled Tuesday Blitz July 25 Late 2023"]
[White "Mohamed Saeed Laily"]
[Black "Goltsev, Dmitry"]
[WhiteFideId "9314946"]
[BlackFideId "24176710"]
[WhiteElo "2272"]
[BlackElo "2689"]
[Result "0-1"]
[Round "2"]
[TimeControl "180+2"]
[Date "2023.07.25"]
[WhiteClock "0:00:02"]
[BlackClock "0:00:10"]
[Board "84"]

1. d4 {[%clk 0:03:00]}  Nf6 {[%clk 0:02:59]} 2. Bg5 {[%clk 0:03:00]}  e6 {[%clk 0:02:58]} 3. e3 {[%clk 0:02:58]}  h6 {[%clk 0:02:56]} 4. Bh4 {[%clk 0:02:57]}  d5 {[%clk 0:02:56]} 5. Nd2 {[%clk 0:02:55]}  c5 {[%clk 0:02:57]} 6. c3 {[%clk 0:02:55]}  Nc6 {[%clk 0:02:57]} 7. f4 {[%clk 0:02:52]}  cxd4 {[%clk 0:02:57]} 8. exd4 {[%clk 0:02:42]}  Bd6 {[%clk 0:02:56]} 9. Qf3 {[%clk 0:02:41]}  Qc7 {[%clk 0:02:55]} 10. Nh3 {[%clk 0:02:25]}  Bd7 {[%clk 0:02:47]} 11. Bd3 {[%clk 0:02:21]}  a6 {[%clk 0:02:15]} 12. Bf2 {[%clk 0:02:00]}  O-O-O {[%clk 0:02:03]} 13. O-O-O {[%clk 0:01:51]}  b5 {[%clk 0:01:51]} 14. Kb1 {[%clk 0:01:47]}  Kb8 {[%clk 0:01:50]} 15. Rc1 {[%clk 0:01:38]}  Ka8 {[%clk 0:01:42]} 16. b4 {[%clk 0:01:36]}  Rb8 {[%clk 0:01:33]} 17. Nb3 {[%clk 0:01:33]}  a5 {[%clk 0:01:29]} 18. a3 {[%clk 0:01:32]}  a4 {[%clk 0:01:25]} 19. Nc5 {[%clk 0:01:20]}  Bc8 {[%clk 0:01:23]} 20. Kb2 {[%clk 0:01:19]}  Nd7 {[%clk 0:01:20]} 21. Qe2 {[%clk 0:01:06]}  Na7 {[%clk 0:01:17]} 22. g3 {[%clk 0:00:52]}  Nb6 {[%clk 0:01:16]} 23. Ng1 {[%clk 0:00:51]}  g5 {[%clk 0:01:10]} 24. fxg5 {[%clk 0:00:48]}  hxg5 {[%clk 0:01:11]} 25. Nf3 {[%clk 0:00:48]}  Nc4+ {[%clk 0:00:53]} 26. Bxc4 {[%clk 0:00:47]}  bxc4 {[%clk 0:00:48]} 27. Ne5 {[%clk 0:00:44]}  f6 {[%clk 0:00:45]} 28. Ng4 {[%clk 0:00:35]}  f5 {[%clk 0:00:32]} 29. Ne5 {[%clk 0:00:33]}  Nb5 {[%clk 0:00:32]} 30. h4 {[%clk 0:00:31]}  g4 {[%clk 0:00:27]} 31. h5 {[%clk 0:00:27]}  Rb6 {[%clk 0:00:23]} 32. h6 {[%clk 0:00:25]}  Rh7 {[%clk 0:00:22]} 33. Rh5 {[%clk 0:00:20]}  Qe7 {[%clk 0:00:20]} 34. Rch1 {[%clk 0:00:19]}  Qf6 {[%clk 0:00:20]} 35. Be3 {[%clk 0:00:19]}  Bxc5 {[%clk 0:00:17]} 36. dxc5 {[%clk 0:00:17]}  Qxe5 {[%clk 0:00:17]} 37. cxb6 {[%clk 0:00:17]}  Qxc3+ {[%clk 0:00:17]} 38. Kb1 {[%clk 0:00:12]}  Nxa3+ {[%clk 0:00:16]} 39. Ka2 {[%clk 0:00:12]}  Qb3+ {[%clk 0:00:17]} 40. Ka1 {[%clk 0:00:11]}  Nc2+ {[%clk 0:00:18]} 41. Qxc2 {[%clk 0:00:09]}  Qxc2 {[%clk 0:00:19]} 42. Rg5 {[%clk 0:00:06]}  c3 {[%clk 0:00:18]} 43. Bc1 {[%clk 0:00:05]}  Ba6 {[%clk 0:00:12]} 44. Rg7 {[%clk 0:00:05]}  Bd3 {[%clk 0:00:12]} 45. b7+ {[%clk 0:00:02]}  Ka7 {[%clk 0:00:09]} 46. Be3+ {[%clk 0:00:03]}  Ka6 {[%clk 0:00:10]} 47. b8=Q {[%clk 0:00:02]}  Qb2# {[%clk 0:00:10]} 0-1


[Site "https://www.chess.com"]

[Event "Titled Tuesday Blitz July 25 Late 2023"]
[White "Novikova, Margarita"]
[Black "Danielyan, Vahe"]
[WhiteFideId "14109689"]
[BlackFideId "13304828"]
[WhiteElo "2170"]
[BlackElo "2630"]
[Result "0-1"]
[Round "2"]
[TimeControl "180+2"]
[Date "2023.07.25"]
[WhiteClock "0:00:00"]
[BlackClock "0:01:13"]
[Board "93"]

1. e4 {[%clk 0:02:59]}  c6 {[%clk 0:02:55]} 2. d4 {[%clk 0:02:57]}  d5 {[%clk 0:02:11]} 3. exd5 {[%clk 0:02:57]}  cxd5 {[%clk 0:02:11]} 4. Bd3 {[%clk 0:02:57]}  Nc6 {[%clk 0:02:11]} 5. c3 {[%clk 0:02:54]}  Nf6 {[%clk 0:02:11]} 6. Nf3 {[%clk 0:02:54]}  g6 {[%clk 0:02:11]} 7. O-O {[%clk 0:02:54]}  Bg7 {[%clk 0:02:11]} 8. Bg5 {[%clk 0:02:54]}  O-O {[%clk 0:02:12]} 9. Qd2 {[%clk 0:02:54]}  Bf5 {[%clk 0:02:11]} 10. Bxf5 {[%clk 0:02:53]}  gxf5 {[%clk 0:02:12]} 11. Bh6 {[%clk 0:02:51]}  Ne4 {[%clk 0:02:12]} 12. Qc1 {[%clk 0:02:50]}  e6 {[%clk 0:02:11]} 13. Bxg7 {[%clk 0:02:46]}  Kxg7 {[%clk 0:02:11]} 14. Nbd2 {[%clk 0:02:44]}  Qf6 {[%clk 0:02:09]} 15. Ne1 {[%clk 0:02:38]}  Qg6 {[%clk 0:02:09]} 16. f3 {[%clk 0:02:33]}  Nd6 {[%clk 0:02:02]} 17. Nd3 {[%clk 0:02:30]}  Qh6 {[%clk 0:02:01]} 18. Nb3 {[%clk 0:02:22]}  Qxc1 {[%clk 0:02:00]} 19. Raxc1 {[%clk 0:02:21]}  b6 {[%clk 0:02:01]} 20. Nd2 {[%clk 0:02:14]}  Rac8 {[%clk 0:02:00]} 21. Rfe1 {[%clk 0:02:13]}  Rc7 {[%clk 0:01:59]} 22. Ne5 {[%clk 0:02:12]}  Nxe5 {[%clk 0:01:58]} 23. dxe5 {[%clk 0:02:11]}  Nb7 {[%clk 0:01:57]} 24. Nb3 {[%clk 0:02:06]}  Rfc8 {[%clk 0:01:57]} 25. f4 {[%clk 0:02:05]}  Nc5 {[%clk 0:01:57]} 26. Rcd1 {[%clk 0:02:02]}  Ne4 {[%clk 0:01:56]} 27. Nd4 {[%clk 0:01:54]}  a6 {[%clk 0:01:55]} 28. h3 {[%clk 0:01:51]}  h5 {[%clk 0:01:53]} 29. Kh2 {[%clk 0:01:46]}  b5 {[%clk 0:01:53]} 30. a3 {[%clk 0:01:42]}  Rc4 {[%clk 0:01:52]} 31. g4 {[%clk 0:01:33]}  hxg4 {[%clk 0:01:51]} 32. hxg4 {[%clk 0:01:33]}  fxg4 {[%clk 0:01:52]} 33. f5 {[%clk 0:01:19]}  Rh8+ {[%clk 0:01:40]} 34. Kg2 {[%clk 0:01:18]}  Rh3 {[%clk 0:01:40]} 35. fxe6 {[%clk 0:01:04]}  Rg3+ {[%clk 0:01:39]} 36. Kh2 {[%clk 0:01:03]}  Rc8 {[%clk 0:01:38]} 37. Rxe4 {[%clk 0:01:02]}  Rh3+ {[%clk 0:01:38]} 38. Kg2 {[%clk 0:00:58]}  dxe4 {[%clk 0:01:39]} 39. e7 {[%clk 0:00:50]}  Rch8 {[%clk 0:01:21]} 40. Nf5+ {[%clk 0:00:40]}  Kg6 {[%clk 0:01:21]} 41. Ng3 {[%clk 0:00:33]}  Re8 {[%clk 0:01:16]} 42. Rd4 {[%clk 0:00:27]}  Rxe7 {[%clk 0:01:15]} 43. Rxe4 {[%clk 0:00:28]}  Kg5 {[%clk 0:01:15]} 44. Nf1 {[%clk 0:00:18]}  f5 {[%clk 0:01:13]} 45. Re3 {[%clk 0:00:08]}  Rxe3 {[%clk 0:01:12]} 46. Nxe3 {[%clk 0:00:09]}  Rxe5 {[%clk 0:01:12]} 47. Nc2 {[%clk 0:00:00]}  Re2+ {[%clk 0:01:13]} 0-1


[Site "https://www.chess.com"]

[Event "Titled Tuesday Blitz July 25 Late 2023"]
[White "Butolo, Alexandru-Mircea"]
[Black "Sochacki, Christophe"]
[WhiteFideId "1261649"]
[BlackFideId "662569"]
[WhiteElo "1806"]
[BlackElo "2627"]
[Result "0-1"]
[Round "2"]
[TimeControl "180+2"]
[Date "2023.07.25"]
[WhiteClock "0:01:57"]
[BlackClock "0:00:13"]
[Board "95"]

1. Nf3 {[%clk 0:03:00]}  Nf6 {[%clk 0:02:51]} 2. e3 {[%clk 0:03:00]}  e6 {[%clk 0:02:49]} 3. d4 {[%clk 0:02:55]}  d5 {[%clk 0:02:47]} 4. b3 {[%clk 0:02:55]}  c5 {[%clk 0:02:47]} 5. Bb2 {[%clk 0:02:55]}  Nc6 {[%clk 0:02:47]} 6. a3 {[%clk 0:02:54]}  cxd4 {[%clk 0:02:46]} 7. exd4 {[%clk 0:02:54]}  g6 {[%clk 0:02:23]} 8. Bd3 {[%clk 0:02:53]}  Bg7 {[%clk 0:02:23]} 9. O-O {[%clk 0:02:52]}  O-O {[%clk 0:02:24]} 10. Nbd2 {[%clk 0:02:52]}  Bd7 {[%clk 0:02:24]} 11. Ne5 {[%clk 0:02:51]}  Rc8 {[%clk 0:02:21]} 12. c4 {[%clk 0:02:49]}  dxc4 {[%clk 0:02:20]} 13. bxc4 {[%clk 0:02:49]}  Be8 {[%clk 0:02:13]} 14. Ndf3 {[%clk 0:02:44]}  Nxe5 {[%clk 0:02:10]} 15. Nxe5 {[%clk 0:02:42]}  Nd7 {[%clk 0:02:11]} 16. Qe2 {[%clk 0:02:37]}  Nxe5 {[%clk 0:02:00]} 17. dxe5 {[%clk 0:02:38]}  Bc6 {[%clk 0:02:00]} 18. Rfd1 {[%clk 0:02:36]}  Qg5 {[%clk 0:01:55]} 19. Be4 {[%clk 0:02:36]}  Bxe5 {[%clk 0:01:45]} 20. Bxc6 {[%clk 0:02:36]}  Bxb2 {[%clk 0:01:45]} 21. Bxb7 {[%clk 0:02:35]}  Bxa1 {[%clk 0:01:40]} 22. Bxc8 {[%clk 0:02:35]}  Rxc8 {[%clk 0:01:19]} 23. Rxa1 {[%clk 0:02:35]}  Qf4 {[%clk 0:01:20]} 24. g3 {[%clk 0:02:27]}  Qxc4 {[%clk 0:01:19]} 25. Qe3 {[%clk 0:02:28]}  a5 {[%clk 0:01:13]} 26. Rd1 {[%clk 0:02:26]}  a4 {[%clk 0:01:02]} 27. Rd4 {[%clk 0:02:23]}  Qc2 {[%clk 0:00:50]} 28. Qf4 {[%clk 0:02:08]}  Qb1+ {[%clk 0:00:15]} 29. Kg2 {[%clk 0:02:07]}  Qb7+ {[%clk 0:00:16]} 30. Kg1 {[%clk 0:02:05]}  e5 {[%clk 0:00:14]} 31. Qxe5 {[%clk 0:01:57]}  Rc1+ {[%clk 0:00:13]} 0-1


[Site "https://www.chess.com"]

[Event "Titled Tuesday Blitz July 25 Late 2023"]
[White "Koc, Przemyslaw"]
[Black "Kramnik, Vladimir"]
[WhiteFideId "1109081"]
[BlackFideId "4101588"]
[WhiteElo "2500"]
[BlackElo "2996"]
[Result "0-1"]
[Round "2"]
[TimeControl "180+2"]
[Date "2023.07.25"]
[WhiteClock "0:00:00"]
[BlackClock "0:00:20"]
[Board "98"]

1. d4 {[%clk 0:02:58]}  d5 {[%clk 0:02:59]} 2. Nf3 {[%clk 0:02:57]}  Nf6 {[%clk 0:02:58]} 3. c3 {[%clk 0:02:57]}  c5 {[%clk 0:02:56]} 4. e3 {[%clk 0:02:53]}  e6 {[%clk 0:02:51]} 5. Bd3 {[%clk 0:02:52]}  b6 {[%clk 0:02:49]} 6. O-O {[%clk 0:02:52]}  Nbd7 {[%clk 0:02:48]} 7. Nbd2 {[%clk 0:02:51]}  Bb7 {[%clk 0:02:47]} 8. Qe2 {[%clk 0:02:48]}  Ne4 {[%clk 0:02:45]} 9. c4 {[%clk 0:02:39]}  Bd6 {[%clk 0:02:40]} 10. b3 {[%clk 0:02:37]}  O-O {[%clk 0:02:36]} 11. Bb2 {[%clk 0:02:37]}  f5 {[%clk 0:02:35]} 12. Ne5 {[%clk 0:02:34]}  Nxd2 {[%clk 0:02:13]} 13. Qxd2 {[%clk 0:02:34]}  Nxe5 {[%clk 0:02:10]} 14. dxe5 {[%clk 0:02:33]}  Bc7 {[%clk 0:02:11]} 15. Qe2 {[%clk 0:02:28]}  Qg5 {[%clk 0:01:59]} 16. f4 {[%clk 0:02:27]}  Qg6 {[%clk 0:01:59]} 17. Rad1 {[%clk 0:02:13]}  Rad8 {[%clk 0:01:56]} 18. cxd5 {[%clk 0:02:06]}  Bxd5 {[%clk 0:01:55]} 19. Bc4 {[%clk 0:02:07]}  Be4 {[%clk 0:01:50]} 20. a4 {[%clk 0:01:17]}  h5 {[%clk 0:01:48]} 21. h4 {[%clk 0:01:07]}  Kh7 {[%clk 0:01:37]} 22. Kh2 {[%clk 0:01:02]}  Rfe8 {[%clk 0:01:31]} 23. g3 {[%clk 0:00:58]}  Qf7 {[%clk 0:01:10]} 24. Bb5 {[%clk 0:00:55]}  Rf8 {[%clk 0:01:03]} 25. Bc3 {[%clk 0:00:54]}  Kg6 {[%clk 0:01:00]} 26. Rxd8 {[%clk 0:00:49]}  Rxd8 {[%clk 0:00:59]} 27. Rd1 {[%clk 0:00:50]}  Qe7 {[%clk 0:00:58]} 28. Rd2 {[%clk 0:00:43]}  Rxd2 {[%clk 0:00:48]} 29. Qxd2 {[%clk 0:00:43]}  Qd8 {[%clk 0:00:46]} 30. Qxd8 {[%clk 0:00:27]}  Bxd8 {[%clk 0:00:46]} 31. Be8+ {[%clk 0:00:21]}  Kh6 {[%clk 0:00:46]} 32. Bb5 {[%clk 0:00:22]}  Bd5 {[%clk 0:00:39]} 33. Bc4 {[%clk 0:00:22]}  Kg6 {[%clk 0:00:38]} 34. Kg1 {[%clk 0:00:20]}  Kf7 {[%clk 0:00:38]} 35. Kf2 {[%clk 0:00:19]}  a6 {[%clk 0:00:37]} 36. Ke1 {[%clk 0:00:18]}  b5 {[%clk 0:00:34]} 37. axb5 {[%clk 0:00:17]}  axb5 {[%clk 0:00:34]} 38. Bxd5 {[%clk 0:00:16]}  exd5 {[%clk 0:00:34]} 39. Ke2 {[%clk 0:00:17]}  Ke6 {[%clk 0:00:29]} 40. Kd3 {[%clk 0:00:15]}  c4+ {[%clk 0:00:26]} 41. Kc2 {[%clk 0:00:15]}  Bb6 {[%clk 0:00:23]} 42. Bd4 {[%clk 0:00:13]}  Ba5 {[%clk 0:00:23]} 43. bxc4 {[%clk 0:00:08]}  dxc4 {[%clk 0:00:23]} 44. Kd1 {[%clk 0:00:06]}  Kd5 {[%clk 0:00:22]} 45. Ke2 {[%clk 0:00:04]}  g6 {[%clk 0:00:22]} 46. Bb2 {[%clk 0:00:00]}  c3 {[%clk 0:00:20]} 0-1


[Site "https://www.chess.com"]

[Event "Titled Tuesday Blitz July 25 Late 2023"]
[White "Cesar Maestre, Bernardo"]
[Black "Miladinovic, Igor"]
[WhiteFideId "24542547"]
[BlackFideId "4203380"]
[WhiteElo "2497"]
[BlackElo "2836"]
[Result "1-0"]
[Round "2"]
[TimeControl "180+2"]
[Date "2023.07.25"]
[WhiteClock "0:00:10"]
[BlackClock "0:00:21"]
[Board "99"]

1. e4 {[%clk 0:02:50]}  c5 {[%clk 0:02:31]} 2. Nc3 {[%clk 0:02:43]}  Nc6 {[%clk 0:02:31]} 3. g3 {[%clk 0:02:42]}  g6 {[%clk 0:02:31]} 4. Bg2 {[%clk 0:02:42]}  Bg7 {[%clk 0:02:31]} 5. d3 {[%clk 0:02:38]}  d6 {[%clk 0:02:32]} 6. h4 {[%clk 0:02:38]}  h6 {[%clk 0:02:30]} 7. Be3 {[%clk 0:02:36]}  b6 {[%clk 0:02:30]} 8. Qd2 {[%clk 0:02:29]}  Bb7 {[%clk 0:02:30]} 9. h5 {[%clk 0:02:25]}  g5 {[%clk 0:02:30]} 10. f4 {[%clk 0:02:25]}  Nf6 {[%clk 0:02:25]} 11. Nf3 {[%clk 0:01:40]}  Ng4 {[%clk 0:02:20]} 12. Bg1 {[%clk 0:01:40]}  Nd4 {[%clk 0:02:19]} 13. O-O-O {[%clk 0:01:32]}  Qd7 {[%clk 0:02:17]} 14. Kb1 {[%clk 0:01:27]}  e6 {[%clk 0:01:48]} 15. fxg5 {[%clk 0:01:18]}  O-O-O {[%clk 0:01:46]} 16. Nxd4 {[%clk 0:01:14]}  cxd4 {[%clk 0:01:45]} 17. Ne2 {[%clk 0:01:13]}  Ne3 {[%clk 0:01:32]} 18. Bxe3 {[%clk 0:01:09]}  dxe3 {[%clk 0:01:33]} 19. Qxe3 {[%clk 0:01:10]}  hxg5 {[%clk 0:01:32]} 20. Qxg5 {[%clk 0:01:08]}  Rdg8 {[%clk 0:01:31]} 21. Qe3 {[%clk 0:01:06]}  Qb5 {[%clk 0:01:29]} 22. d4 {[%clk 0:00:53]}  Rxh5 {[%clk 0:01:27]} 23. Rxh5 {[%clk 0:00:38]}  Qxh5 {[%clk 0:01:28]} 24. Bf3 {[%clk 0:00:37]}  Qg6 {[%clk 0:01:25]} 25. a4 {[%clk 0:00:14]}  Bf6 {[%clk 0:01:16]} 26. e5 {[%clk 0:00:14]}  Bg5 {[%clk 0:01:02]} 27. Bxb7+ {[%clk 0:00:11]}  Kxb7 {[%clk 0:01:03]} 28. Qf3+ {[%clk 0:00:11]}  d5 {[%clk 0:01:04]} 29. a5 {[%clk 0:00:09]}  bxa5 {[%clk 0:01:00]} 30. Rd3 {[%clk 0:00:09]}  a4 {[%clk 0:00:49]} 31. Ra3 {[%clk 0:00:09]}  Qe4 {[%clk 0:00:47]} 32. Qxf7+ {[%clk 0:00:07]}  Kb6 {[%clk 0:00:46]} 33. Qxe6+ {[%clk 0:00:06]}  Ka5 {[%clk 0:00:36]} 34. Qxg8 {[%clk 0:00:07]}  Bd2 {[%clk 0:00:31]} 35. Qd8+ {[%clk 0:00:07]}  Kb5 {[%clk 0:00:31]} 36. Qd7+ {[%clk 0:00:07]}  Kb6 {[%clk 0:00:32]} 37. Qxa4 {[%clk 0:00:06]}  Qxe2 {[%clk 0:00:32]} 38. Qxa7+ {[%clk 0:00:07]}  Kc6 {[%clk 0:00:31]} 39. Qa6+ {[%clk 0:00:06]}  Qxa6 {[%clk 0:00:27]} 40. Rxa6+ {[%clk 0:00:06]}  Kb5 {[%clk 0:00:27]} 41. Rd6 {[%clk 0:00:07]}  Kc4 {[%clk 0:00:28]} 42. g4 {[%clk 0:00:08]}  Kxd4 {[%clk 0:00:27]} 43. e6 {[%clk 0:00:08]}  Bg5 {[%clk 0:00:26]} 44. Rd7 {[%clk 0:00:09]}  Kc5 {[%clk 0:00:21]} 45. e7 {[%clk 0:00:10]} 1-0


[Site "https://www.chess.com"]

[Event "Titled Tuesday Blitz July 25 Late 2023"]
[White "WindWhistler11"]
[Black "Mekhitarian, Krikor Sevag"]
[BlackFideId "2107660"]
[WhiteElo "2449"]
[BlackElo "2769"]
[Result "0-1"]
[Round "2"]
[TimeControl "180+2"]
[Date "2023.07.25"]
[WhiteClock "0:00:34"]
[BlackClock "0:01:58"]
[Board "100"]

1. Nf3 {[%clk 0:03:00]}  d5 {[%clk 0:02:59]} 2. c4 {[%clk 0:03:00]}  d4 {[%clk 0:02:59]} 3. e3 {[%clk 0:02:59]}  Nc6 {[%clk 0:02:59]} 4. d3 {[%clk 0:02:43]}  g6 {[%clk 0:02:57]} 5. e4 {[%clk 0:02:41]}  Bg7 {[%clk 0:02:57]} 6. g3 {[%clk 0:02:32]}  a5 {[%clk 0:02:58]} 7. Bg2 {[%clk 0:02:32]}  e5 {[%clk 0:02:58]} 8. O-O {[%clk 0:02:32]}  Nge7 {[%clk 0:02:59]} 9. Na3 {[%clk 0:02:32]}  O-O {[%clk 0:02:59]} 10. Nc2 {[%clk 0:02:30]}  h6 {[%clk 0:02:59]} 11. Rb1 {[%clk 0:02:29]}  Be6 {[%clk 0:02:55]} 12. b3 {[%clk 0:02:27]}  Rb8 {[%clk 0:02:50]} 13. Ba3 {[%clk 0:02:18]}  b5 {[%clk 0:02:49]} 14. Bxe7 {[%clk 0:02:09]}  Qxe7 {[%clk 0:02:47]} 15. Qd2 {[%clk 0:02:04]}  a4 {[%clk 0:02:40]} 16. cxb5 {[%clk 0:01:59]}  Rxb5 {[%clk 0:02:35]} 17. bxa4 {[%clk 0:01:57]}  Rc5 {[%clk 0:02:35]} 18. Nb4 {[%clk 0:01:54]}  Ra8 {[%clk 0:02:25]} 19. Nxc6 {[%clk 0:01:37]}  Rxc6 {[%clk 0:02:25]} 20. a5 {[%clk 0:01:29]}  Rc3 {[%clk 0:02:24]} 21. Rfc1 {[%clk 0:01:24]}  Qa3 {[%clk 0:02:24]} 22. Rxc3 {[%clk 0:01:04]}  dxc3 {[%clk 0:02:25]} 23. Qc1 {[%clk 0:01:01]}  Rxa5 {[%clk 0:02:22]} 24. Qxa3 {[%clk 0:00:54]}  Rxa3 {[%clk 0:02:22]} 25. Rc1 {[%clk 0:00:54]}  Bxa2 {[%clk 0:02:17]} 26. Ne1 {[%clk 0:00:54]}  h5 {[%clk 0:02:01]} 27. Nc2 {[%clk 0:00:48]}  Ra5 {[%clk 0:02:01]} 28. Nb4 {[%clk 0:00:43]}  Be6 {[%clk 0:01:59]} 29. Rxc3 {[%clk 0:00:41]}  Ra1+ {[%clk 0:01:58]} 30. Bf1 {[%clk 0:00:34]}  Bh3 {[%clk 0:01:58]} 0-1


[Site "https://www.chess.com"]

[Event "Titled Tuesday Blitz July 25 Late 2023"]
[White "Senft, Sean"]
[Black "Gascon Del Nogal, Jose Rafael"]
[WhiteFideId "2044960"]
[BlackFideId "3902463"]
[WhiteElo "2302"]
[BlackElo "2586"]
[Result "1-0"]
[Round "2"]
[TimeControl "180+2"]
[Date "2023.07.25"]
[WhiteClock "0:01:13"]
[BlackClock "0:00:18"]
[Board "104"]

1. d4 {[%clk 0:03:00]}  Nf6 {[%clk 0:02:58]} 2. c4 {[%clk 0:03:01]}  e6 {[%clk 0:02:57]} 3. Nc3 {[%clk 0:03:02]}  Bb4 {[%clk 0:02:56]} 4. Nf3 {[%clk 0:03:02]}  O-O {[%clk 0:02:52]} 5. Bg5 {[%clk 0:03:03]}  h6 {[%clk 0:02:51]} 6. Bh4 {[%clk 0:03:03]}  b6 {[%clk 0:02:51]} 7. e3 {[%clk 0:03:03]}  Bb7 {[%clk 0:02:50]} 8. Bd3 {[%clk 0:03:03]}  g5 {[%clk 0:02:49]} 9. Nxg5 {[%clk 0:03:01]}  hxg5 {[%clk 0:02:48]} 10. Bxg5 {[%clk 0:03:01]}  Be7 {[%clk 0:02:10]} 11. e4 {[%clk 0:02:58]}  e5 {[%clk 0:01:43]} 12. dxe5 {[%clk 0:02:38]}  Nh7 {[%clk 0:01:43]} 13. Bh6 {[%clk 0:02:37]}  Bg5 {[%clk 0:01:14]} 14. Qg4 {[%clk 0:02:36]}  Kh8 {[%clk 0:00:57]} 15. Bxf8 {[%clk 0:02:37]}  Qxf8 {[%clk 0:00:55]} 16. h4 {[%clk 0:02:10]}  Bh6 {[%clk 0:00:55]} 17. Nd5 {[%clk 0:02:10]}  Nc6 {[%clk 0:00:53]} 18. f4 {[%clk 0:02:03]}  Qc5 {[%clk 0:00:48]} 19. Qh5 {[%clk 0:01:48]}  Bxf4 {[%clk 0:00:29]} 20. Rf1 {[%clk 0:01:37]}  Bg3+ {[%clk 0:00:23]} 21. Kd1 {[%clk 0:01:26]}  Qd4 {[%clk 0:00:20]} 22. Kc2 {[%clk 0:01:21]}  Nxe5 {[%clk 0:00:18]} 23. Rad1 {[%clk 0:01:14]}  Bxd5 {[%clk 0:00:18]} 24. exd5 {[%clk 0:01:14]}  Nxc4 {[%clk 0:00:18]} 25. Qxh7# {[%clk 0:01:13]} 1-0


[Site "https://www.chess.com"]